Cogmind - Beta 16 @@@ ROGUE MODE // 2025.12.28 @ 12:23:42 Player: Compilatron Result: Destroyed by CW-AFG(R) with Subdweller Machine Gun Performance ------------- Evolutions (0) 0 Regions Visited (2) 400 Robots Destroyed (17) 85 Value Destroyed (342) 342 Prototype IDs (0) 0 Alien Tech Used (0) 0 Bonus (0) 0 TOTAL SCORE: 827 Bonus ------- None Cogmind --------- Core Integrity 0/250 Matter 264/300 Energy 100/100 System Corruption 0% Temperature Cool (0) Movement Core (100) Ox1 Location -10/Subcaves Parts ------- > --- POWER (1) -------- (None) > --- PROPULSION (2) --- (None) > --- UTILITY (2) ------ Small Storage Unit > --- WEAPON (2) ------- (None) > --- INVENTORY (8) ---- Ion Engine Improved Aluminum Leg Improved Aluminum Leg High-capacity Matter Pod (35) Sensor Array Signal Interpreter Mining Laser Peak State ------------ > --- POWER ------------ Ion Engine > --- PROPULSION ------- Improved Aluminum Leg Improved Aluminum Leg > --- UTILITY ---------- Small Storage Unit Backup Plating III > --- WEAPON ----------- Shotgun Shotgun > --- INVENTORY -------- Ion Engine Improved Aluminum Leg Improved Aluminum Leg Wheel EM Pulse Gun EM Pulse Gun Shotgun Shotgun [Rating: 14] Favorites ----------- Power Ion Engine Engine Ion Engine Propulsion Improved Aluminum Leg Leg Improved Aluminum Leg Utility Small Storage Unit Storage Small Storage Unit Protection Backup Plating III Weapon Shotgun Energy Gun EM Pulse Gun Ballistic Gun Shotgun Special Weapon Mining Laser Special Melee Weapon Datajack Build | -11 -10 -10 ------- Run | Yrd Mat Sub Slots Evolved . | . . . Power . | . . . Propulsion . | . . . Utility . | . . . Weapon . | . . . Parts Attached 10 | . 10 . Power 1 | . 1 . Engine 1 | . 1 . Core . | . . . Reactor . | . . . Propulsion 2 | . 2 . Treads . | . . . Leg 2 | . 2 . Wheel . | . . . Hover . | . . . Flight . | . . . Utility . | . . . Device . | . . . Storage . | . . . Processor . | . . . Hackware . | . . . Protection . | . . . Artifact . | . . . Weapon 7 | . 7 . Energy Gun 1 | . 1 . Energy Cannon . | . . . Ballistic Gun 4 | . 4 . Ballistic Cannon . | . . . Launcher . | . . . Special Weapon 1 | . 1 . Impact Weapon . | . . . Slashing Weapon . | . . . Piercing Weapon . | . . . Special Melee Weapon 1 | . 1 . Unidentified Prototypes . | . . . Parts Lost 7 | . 1 6 Power 1 | . . 1 Propulsion 2 | . . 2 Utility 1 | . . 1 Weapon 3 | . 1 2 Highest Loss Streak 6 | . 1 6 To Critical Strikes . | . . . Average Backups 7 | . 7 7 Power 1 | . 1 1 Propulsion 2 | . 2 2 Utility . | . . 3 Weapon 2 | . 2 1 Tool/Special . | . . . Unused Backups 11 | . 6 5 Power . | . . . Propulsion 6 | . 4 2 Utility 3 | . . 3 Weapon 2 | . 2 . Tool/Special . | . . . Average Slot Usage (%) 93 | . 94 78 Engine 13 | . 14 9 Leg 27 | . 28 25 Storage 14 | . 14 14 Protection 13 | . 13 14 Energy Gun 2 | . 2 . Ballistic Gun 16 | . 17 4 Special Weapon 3 | . 3 9 Peak Build Rating 14 | . 14 13 Average Rating 12 | . 12 9 On Entrance 7 | 6 6 11 Avg Prop Armor Cover (%) . | . . . Naked Turns . | . . . Heaviest Build 18 | 13 18 13 Greatest Support 26 | 20 26 26 Greatest Overweight (x) 1 | . 1 . Average Overweight (x) . | . . . Largest Inventory Capacity 8 | . 8 8 Average Capacity 8 | . 8 8 Most Carried 8 | . 8 8 Average Carried 7 | . 7 7 Final Capacity 8 | 8 8 8 Final Carried 8 | 6 8 7 Class Distribution -------------------- 100% | Mutant Dominant Class ---------------- Mutant | -10/Materials Mutant | -10/Subcaves Resources | -11 -10 -10 ----------- Run | Yrd Mat Sub Matter Collected 522 | 176 346 . Remotely . | . . . Salvage Created 419 | . 396 23 Parts 31 | . 31 . Haulers Intercepted . | . . . Recyclers Shooed 1 | . 1 . Parts Field Recycled . | . . . Retrieved Matter . | . . . Parts Self-Destructed 7 | . . 7 Prevented . | . . . Parts Restored . | . . . Kills | -11 -10 -10 ------- Run | Yrd Mat Sub Combat Hostiles Destroyed 12 | . 11 1 Guns 12 | . 11 1 Classes Destroyed 7 | . 6 1 Worker 1 | . 1 . Mechanic 1 | . 1 . Operator 1 | . 1 . Watcher 2 | . 2 . Swarmer 6 | . 6 . Grunt 5 | . 5 . Subdweller 1 | . . 1 Best Kill Streak 6 | . 6 1 Combat Bots Only 4 | . 4 1 Max Kills in Single Turn 2 | . 2 1 Gunslinging 1 | . 1 . Exploded . | . . . Melee . | . . . Uniques/NPCs Destroyed . | . . . Combat | -11 -10 -10 -------- Run | Yrd Mat Sub Hostile Shots Fired 93 | . 66 27 Missed 27 | . 17 10 Hits 66 | . 49 17 Projectile 66 | . 49 17 AOE 4 | . . 4 Damage Taken 996 | . 510 486 Core 265 | . 84 181 Absorbed by Shields . | . . . Core Remaining (%) 100 | 100 . . Volleys Fired 48 | . 39 9 Largest 2 | . 2 1 Hottest 100 | . 100 23 Shots Fired 73 | . 64 9 Gun 63 | . 54 9 Cannon . | . . . Launcher . | . . . Special 10 | . 10 . Kinetic 57 | . 48 9 Thermal 10 | . 10 . Explosive . | . . . Electromagnetic 6 | . 6 . Robot Hit Streak 10 | . 10 5 Robot Miss Streak 9 | . 9 2 Penetration Max . | . . . Secondary Targets 4 | . 4 . Max Gunslinging Chain 1 | . 1 . Shots Hit Robots 40 | . 32 8 Core Hits 28 | . 26 2 Critical Kills . | . . . Critical Parts Destroyed 1 | . 1 . Critical Strikes 1 | . 1 . Destroy 1 | . 1 . Melee Attacks . | . . . Impact . | . . . Slashing . | . . . Piercing . | . . . Sneak Attacks . | . . . Combat Hostiles . | . . . Follow-up Attacks . | . . . Damage Inflicted 670 | . 517 153 Guns 668 | . 515 153 Cannons . | . . . Explosions . | . . . Melee . | . . . Ramming 2 | . 2 . Kinetic 630 | . 477 153 Thermal . | . . . Explosive . | . . . Electromagnetic 38 | . 38 . Impact . | . . . Slashing . | . . . Piercing . | . . . Highest Corruption . | . . . Average Corruption . | . . . Corruption Purged . | . . . Corruption Blocked . | . . . Overload Shots . | . . . Overflow Damage . | . . . Projectiles . | . . . Explosions . | . . . Melee . | . . . Knockbacks . | . . . Impact . | . . . Kinetic . | . . . Secondary . | . . . Self-Inflicted Damage . | . . . Shots . | . . . Rammed . | . . . Targets Rammed 1 | . 1 . Kicked 1 | . 1 . Crushed . | . . . Highest Temperature 91 | . 91 . Average Temperature 41 | . 41 . Received Heat Transfer 246 | . 204 42 Siege Activations . | . . . Martial Activations . | . . . Shielding Activations . | . . . Robots Disrupted . | . . . Combat Hostiles . | . . . Robots Corrupted . | . . . Combat Hostiles . | . . . Parts Fried 1 | . 1 . Impact Corruptions . | . . . Robots Melted . | . . . Combat Hostiles . | . . . Parts Melted . | . . . Heat Transferred . | . . . Parts Sabotaged . | . . . Parts Stolen . | . . . Parts Stripped . | . . . Power Chain Reactions . | . . . Alert | -11 -10 -10 ------- Run | Yrd Mat Sub Maximum Alert Level . | . . . Low Security (%) 100 | . 100 . Level 1 . | . . . Level 2 . | . . . Level 3 . | . . . Level 4 . | . . . Level 5 . | . . . High Security . | . . . Max Security . | . . . Peak Influence 125 | . 125 . Initial . | . . . Average 68 | . 68 . Influence Increases 360 | . 360 . Destroy 0b10 Robot/C 220 | . 220 . Destroy 0b10 Robot/NC 25 | . 25 . Destroy Leader 44 | . 44 . Successful Hack 54 | . 54 . Disable Machine 15 | . 15 . Destroy Structure 2 | . 2 . Influence Decreases 360 | . 328 32 Entered New Map 16 | . . 16 Time Decay 328 | . 318 10 Lost Part 16 | . 10 6 Squads Dispatched 2 | . 2 . Investigation 1 | . 1 . Extermination . | . . . Reinforcement 1 | . 1 . Assault . | . . . Garrison . | . . . Intercept . | . . . Searches Triggered . | . . . Construction Impeded . | . . . Haulers Reinforced . | . . . Active Scanning Responses . | . . . Cargo Convoy Interrupts . | . . . Stealth | -11 -10 -10 --------- Run | Yrd Mat Sub Distress Signals 2 | . 2 . Communications Jammed . | . . . Distress Signals . | . . . Times Spotted 22 | . 18 4 Peak Tracking Total 5 | . 5 4 Tactical Retreats . | . . . Traps | -11 -10 -10 ------- Run | Yrd Mat Sub Traps Triggered 2 | . 2 . Indirectly . | . . . Trap Hack Attempts 17 | . 17 . Triggered . | . . . Disarmed 1 | . 1 . Reprogrammed . | . . . Reused . | . . . Traps Extracted . | . . . Installed . | . . . Triggered . | . . . Machines | -11 -10 -10 ---------- Run | Yrd Mat Sub Machines Disabled 1 | . 1 . Max in Single Turn 1 | . 1 . Machines Repaired . | . . . Machines Dismantled . | . . . Machines Sabotaged . | . . . Overloaded Fab Kills . | . . . Hacking | -11 -10 -10 --------- Run | Yrd Mat Sub Machines Accessed 8 | . 8 . Terminals 5 | . 5 . Fabricators . | . . . Repair Stations 1 | . 1 . Recycling Units 2 | . 2 . Scanalyzers . | . . . Garrison Access . | . . . Total Hacks 24 | . 24 . Successful 15 | . 15 . Failed 9 | . 9 . Catastrophic 2 | . 2 . Database Lockouts . | . . . Manual 22 | . 22 . Terminals 17 | . 17 . Fabricators . | . . . Repair Stations 1 | . 1 . Recycling Units 6 | . 6 . Scanalyzers . | . . . Garrison Access . | . . . Terminal Hacks 3 | . 3 . Locate Traps 3 | . 3 . Fabricator Hacks . | . . . Repair Station Hacks 1 | . 1 . Refit 1 | . 1 . Recycling Unit Hacks . | . . . Scanalyzer . | . . . Garrison Access Hacks . | . . . Unauthorized Hacks 11 | . 11 . Terminals 7 | . 7 . Track 2 | . 2 . Botnet 4 | . 4 . Operators 1 | . 1 . Fabricators . | . . . Repair Stations . | . . . Recycling Units 4 | . 4 . Monitor 1 | . 1 . Reject 1 | . 1 . Recyclers 1 | . 1 . Mask 1 | . 1 . Scanalyzers . | . . . Garrison Access . | . . . Data Cores Recovered . | . . . Used . | . . . Hacking Detections 6 | . 6 . Full Trace Events . | . . . Feedback Events . | . . . Feedback Blocked . | . . . Robot Schematics Acquired . | . . . Robots Built . | . . . Authchips . | . . . Time . | . . . Total Robot Build Rating . | . . . Part Schematics Acquired . | . . . Parts Built . | . . . Authchips . | . . . Time . | . . . Total Part Build Rating . | . . . Part Studies Acquired . | . . . Parts Repaired . | . . . Time . | . . . Parts Recycled . | . . . Recycled Matter . | . . . Retrieved Matter . | . . . Retrieved Components . | . . . Parts Scanalyzed . | . . . Part Schematics Acquired . | . . . Parts Damaged . | . . . Bothacking | -11 -10 -10 ------------ Run | Yrd Mat Sub Used RIF Installer . | . . . Robots Hacked . | . . . Non-combat . | . . . Combat . | . . . Robot Hacks Applied . | . . . Relay Couplers Released . | . . . Fabnet Peak Effective % . | . . . Robots Rewired . | . . . Allies Hacked . | . . . Hacks Repelled . | . . . Allies | -11 -10 -10 -------- Run | Yrd Mat Sub Total Allies . | . . . Largest Group . | . . . Highest-Rated Group . | . . . Highest-Rated Ally . | . . . Total Orders . | . . . Ally Attacks . | . . . Total Damage . | . . . Kills . | . . . Allies Corrupted . | . . . Allies Melted . | . . . Intel | -11 -10 -10 ------- Run | Yrd Mat Sub Active Infowar (turns) . | . . . Robot Analysis Total . | . . . Derelict Logs Recovered . | . . . Drone Launches . | . . . Drone Recoveries . | . . . Exploration | -11 -10 -10 ------------- Run | Yrd Mat Sub Turns Passed 817 | . 761 56 Spaces Moved 486 | 1 460 25 Core . | . . . Treads . | . . . Legs 486 | 1 460 25 Wheels . | . . . Hover . | . . . Flight . | . . . Fastest Speed 120 | 120 120 120 Average Speed 120 | 120 120 120 Slowest Speed 190 | 120 190 120 Overloaded Moves . | . . . Propulsion Burnouts . | . . . Robots Hopped . | . . . Potential Cave-ins . | . . . Cave-ins Triggered . | . . . Exploration Rate (%) 21 | 2 58 5 Regions Visited 2 Branch Regions 1 Pre-discovered Areas . | . . . Known Exits Taken . | . . . Unknown Exits Taken 2 | 1 1 . Scrap Searched . | . . . Spaces Dug 3 | . 3 . Terrain Destroyed 3 | . 3 . Melee . | . . . Projectile 3 | . 3 . AOE . | . . . Terrain Rammed . | . . . Walls Destroyed . | . . . Machines Disabled . | . . . Actions | -11 -10 -10 --------- Run | Yrd Mat Sub Total 629 | . 587 42 Wait 42 | . 36 6 Move 484 | . 459 25 Hop . | . . . Pick Up 11 | . 11 . Fast Attach 2 | . 2 . Attach 4 | . 3 1 Detach . | . . . Swap 8 | . 7 1 Drop 12 | . 12 . Fire 48 | . 39 9 Melee . | . . . Ram . | . . . Kick 1 | . 1 . Crush . | . . . Escape Stasis . | . . . Rewire . | . . . Trap 17 | . 17 . Miscellaneous . | . . . Route ------- -11/Scrapyard -10/Materials (discovered 3 exits: [*Mat x2] / [*Sub]) -10/Subcaves History --------- Turn | Location | Event 1 | -11/Scrapyard | Discovered new exit (range 0) 1 | -11/Scrapyard | Entered Materials 311 | -10/Materials | Build established: Mutant 387 | -10/Materials | Discovered new exit (range 7) 502 | -10/Materials | Discovered new exit (range 14) 757 | -10/Materials | Discovered new exit (range 3) 762 | -10/Materials | Entered Subcaves 792 | -10/Subcaves | Core integrity fell below 50% 800 | -10/Subcaves | Core integrity fell below 20% 818 | -10/Subcaves | Destroyed by CW-AFG(R) with Subdweller Machine Gun Last Messages --------------- GOAL=ESCAPE 00790_ Subatomizers dissect the Lgt. Assault Rifle. 00792_ Lgt. Assault Rifle fries itself beyond repair. 00795_ Shotgun destroyed. 00797_ Lgt. Assault Rifle fries itself beyond repair. 00797_ Ion Engine destroyed. 00800_ Flight Unit fries itself beyond repair. 00800_ Lgt. Assault Rifle fries itself beyond repair. 00804_ Subatomizers dissect the Flight Unit. 00807_ 2F-CVH(R) destroyed. 00808_ Flight Unit fries itself beyond repair. 00808_ Lgt. Ion Engine fries itself beyond repair. 00809_ Imp. Aluminum Leg destroyed. 00813_ Shotgun destroyed. 00814_ Backup Plating III destroyed. Map ----- +----------------------------------------------------+ | ?????????????????????## #####???????????????????? | | ?????????????????????# #???????????????????? | | ?????????????????????# #???????????????????? | | ????????????????????## ##???????????????????? | | ????????????????##### ###????????????????????? | | ????????????????# ##??????????????????????? | | ????????????????# #####???????????????????? | | ????????????????## #???????????????????? | | ?????????????????### ## #??????????????????? | | ???????????????????# ##?# #??????????????????? | | ??????????????????## #???# #??????????????????? | | ??????????????????# #????# #??????????????????? | | ??????????????????## #????? #?????????????????? | | ??????????????????# #?????? #????????????????? | | ??????????????????## #??????? ????????????????? | | ??????????????????# ####????? ##??????????????? | | ??????????????????## ##???? #??????????????? | | ???????????????????## ####? ##??????????????? | | ????????????????????## ## #??????????????? | | ????????????????????#### " #??????????????? | | ???????????????????## ## """ #??????????????? | | ??????????????#????# # ""###??????????????? | | ??????????????# ## ####???????????????? | | ??????????????#; ;; ##??????????????? | | ??????????????#; #??????????????? | | ???????????????#; % & @ #??????????????? | | ??????????????# ;; % ;;#??????????????? | | ??????????????### R ;#??????????????? | | ????????????????#;% ; ;#?????????????? | | ????????????????## R ;#?????????????? | | ?????????????????# " R #????????????? | | ?????????????????# "#% ##### #????????????? | | ?????????????????## ##"#????? ##????????????? | | ?????????????????? #?##??????? #?????????????? | | ?????????????????## ???????????? #?????????????? | | ?????????????????? ??????????????###?????????????? | | ????????????????? ???????????????????????????????? | | ????????????????#"???????????????????????????????? | | ?????????????????????????????????????????????????? | | ?????????????????????????????????????????????????? | | ?????????????????????????????????????????????????? | | ?????????????????????????????????????????????????? | | ?????????????????????????????????????????????????? | | ?????????????????????????????????????????????????? | | ?????????????????????????????????????????????????? | | ?????????????????????????????????????????????????? | | ?????????????????????????????????????????????????? | | ?????????????????????????????????????????????????? | | ?????????????????????????????????????????????????? | | ?????????????????????????????????????????????????? | +----------------------------------------------------+ Best States ------------- Heat Dissipation 25 Energy Generation 10 Energy Capacity 250 Matter Stores 300 Matter Capacity 300 Sight Range 16 Terrain Scan Density 10 Armor Coverage 80 Evasion (%) 55 Item Schematics ----------------- None Robot Schematics ------------------ None Fabricated ------------ Nothing Repaired ---------- Nothing Studied --------- None Alien Tech Used ----------------- None Achievements -------------- None Challenges ------------ None Game ------ Seed RiotProcessingPod Manual? 0 Play Time 00:10:19 Cumulative 75.2 hours Start 2025.12.28 @ 12:11:59 End 2025.12.28 @ 12:23:42 Sessions 1 Manual Loads 0 Difficulty Rogue Special Mode None Game No. 114 Rogue 91 Adventurer 20 Explorer 3 Win Type - Total 0 Types 0/0/0/0/0/0/0/0/0/0 Lore% 44 Gallery% 41 Achievement% 30 Wizard Run 0 Options --------- Layout 1 ASCII 0 Keyboard 0 Movement Numpad Keybinds 0 Fullscreen 2 Font 24/Smallcaps Map View 50x35 Zoom Use 0% Tactical HUD 1 Map Filters NONE Filters NONE Steam 1 RUN: 652cd378-b8a0-4863-954d-10ba8b1ad7b6